[Event "11th LCC FIDE Open 2019"]
[Site "London"]
[Date "2019.12.01"]
[Round "4.53"]
[White "Brozel, Sacha"]
[Black "Hughes, Anthony"]
[Result "1/2-1/2"]
[ECO "A99"]
[WhiteElo "2188"]
[BlackElo "1874"]
[Annotator "ChessBase"]
[PlyCount "74"]
[EventDate "2019.11.29"]
[EventType "swiss"]
[EventCountry "ENG"]
[SourceTitle "playchess.com"]
[Source "ChessBase"]
[SourceQuality "1"]
[TimeControl "40/5400+30:1800+30"]

1. Nf3 {[%emt 0:05:28]} f5 {[%emt 0:01:07]} 2. g3 {[%emt 0:01:12]} Nf6 {[%emt 0:00:11]} 3. Bg2 {[%emt 0:00:10]} d6 {[%emt 0:00:18]} 4. d4 {[%emt 0:02:10]} e6 {[%emt 0:00:23]} 5. O-O {[%emt 0:01:11]} Be7 {[%emt 0:00:08]} 6. c4 {[%emt 0:05:06]} O-O {[%emt 0:00:25]} 7. b3 {[%emt 0:05:28]} a5 {[%emt 0:00:41]} 8. Nc3 {[%emt 0:02:27]} Qe8 {[%emt 0:06:47]} 9. Qc2 {[%emt 0:13:08]} Nc6 {[%emt 0:03:59]} 10. a3 {[%emt 0:08:25]} e5 {[%emt 0:01:50]} 11. d5 {[%emt 0:00:34]} Nd8 {[%emt 0:05:23]} 12. e4 {[%emt 0:00:24]} Nxe4 {[%emt 0:03:14]} 13. Nxe4 {[%emt 0:00:11]} fxe4 {[%emt 0:00:05]} 14. Nd2 {[%emt 0:01:26]} e3 {[%emt 0:00:58]} 15. fxe3 {[%emt 0:00:09]} Rxf1+ {[%emt 0:08:30]} 16. Bxf1 {[%emt 0:02:19]} Qh5 {[%emt 0:00:48]} 17. Ne4 {[%emt 0:07:08]} Nf7 {[%emt 0:01:48]} 18. Be2 {[%emt 0:02:12]} Bg4 {[%emt 0:25:42]} 19. Bxg4 {[%emt 0:02:25]} Qxg4 {[%emt 0:00:35]} 20. Bd2 {[%emt 0:05:45]} b6 {[%emt 0:10:59]} 21. Rf1 {[%emt 0:00:58]} Rf8 {[%emt 0:00:46]} 22. Kg2 {[%emt 0:15:19]} Ng5 {[%emt 0:10:32]} 23. Rxf8+ {[%emt 0:00:08]} Kxf8 {[%emt 0:00:18]} 24. Nxg5 {[%emt 0:00:32]} Bxg5 {[%emt 0:00:29]} 25. Bc1 {[%emt 0:03:48]} g6 {[%emt 0:09:57]} 26. h3 {[%emt 0:01:58]} Qf5 {[%emt 0:01:20]} 27. e4 {[%emt 0:00:13]} Qf6 {[%emt 0:00:24]} 28. h4 {[%emt 0:00:26]} Bxc1 {[%emt 0:00:21]} 29. Qxc1 {[%emt 0:00:05]} Kg7 {[%emt 0:00:55]} 30. b4 {[%emt 0:00:42]} axb4 {[%emt 0:00:09]} 31. axb4 {[%emt 0:00:08]} h6 {[%emt 0:01:28]} 32. Qa3 {[%emt 0:05:31]} g5 {[%emt 0:00:23]} 33. h5 {[%emt 0:04:35]} g4 {[%emt 0:01:16]} 34. c5 {[%emt 0:03:40]} bxc5 {[%emt 0:00:12]} 35. bxc5 {[%emt 0:00:07]} dxc5 {[%emt 0:00:32]} 36. Qxc5 {[%emt 0:00:33]} Qf3+ {[%emt 0:00:38]} 37. Kh2 {[%emt 0:00:06]} Qe2+ {[%emt 0:04:45] Qa7} 1/2-1/2

[Event "11th LCC FIDE Open 2019"]
[Site "London"]
[Date "2019.12.02"]
[Round "5.1"]
[White "Praggnanandhaa, R."]
[Black "Smirnov, Anton"]
[Result "1/2-1/2"]
[ECO "C42"]
[WhiteElo "2586"]
[BlackElo "2573"]
[Annotator "ChessBase"]
[PlyCount "33"]
[EventDate "2019.11.29"]
[EventType "swiss"]
[EventCountry "ENG"]
[SourceTitle "playchess.com"]
[Source "ChessBase"]
[SourceQuality "1"]
[TimeControl "40/5400+30:1800+30"]

1. e4 {[%emt 0:00:00]} e5 {[%emt 0:00:00]} 2. Nf3 {[%emt 0:00:05]} Nf6 {[%emt 0:00:00]} 3. Nxe5 {[%emt 0:00:07]} d6 {[%emt 0:00:00]} 4. Nf3 {[%emt 0:00:05]} Nxe4 {[%emt 0:00:00]} 5. Nc3 {[%emt 0:00:05]} Nxc3 {[%emt 0:00:00]} 6. dxc3 {[%emt 0:00:03]} Be7 {[%emt 0:00:00]} 7. Be3 {[%emt 0:00:06]} O-O {[%emt 0:00:17]} 8. Qd2 {[%emt 0:00:09]} Nd7 {[%emt 0:00:05]} 9. O-O-O {[%emt 0:00:07]} c6 {[%emt 0:00:04]} 10. Kb1 {[%emt 0:01:54]} d5 {[%emt 0:00:24]} 11. h4 {[%emt 0:00:44]} Bc5 {[%emt 0:03:13]} 12. Bg5 {[%emt 0:32:44]} f6 {[%emt 0:16:50]} 13. Bf4 {[%emt 0:08:12]} Ne5 {[%emt 0:05:02]} 14. Re1 {[%emt 0:05:51]} Nxf3 {[%emt 0:12:16]} 15. gxf3 {[%emt 0:00:03]} Bf5 {[%emt 0:00:08]} 16. Bd3 {[%emt 0:04:08]} Qd7 {[%emt 0:01:06]} 17. Be3 {[%emt 0:09:35]} 1/2-1/2

[Event "11th LCC FIDE Open 2019"]
[Site "London"]
[Date "2019.12.02"]
[Round "5.2"]
[White "Gormally, Daniel W"]
[Black "Grover, Sahaj"]
[Result "1/2-1/2"]
[ECO "C78"]
[WhiteElo "2491"]
[BlackElo "2508"]
[Annotator "ChessBase"]
[PlyCount "77"]
[EventDate "2019.11.29"]
[EventType "swiss"]
[EventCountry "ENG"]
[SourceTitle "playchess.com"]
[Source "ChessBase"]
[SourceQuality "1"]
[TimeControl "40/5400+30:1800+30"]

1. e4 {[%emt 0:00:00]} e5 {[%emt 0:00:00]} 2. Nf3 {[%emt 0:00:06]} Nc6 {[%emt 0:00:00]} 3. Bb5 {[%emt 0:00:11]} a6 {[%emt 0:00:09]} 4. Ba4 {[%emt 0:00:35]} Nf6 {[%emt 0:00:09]} 5. O-O {[%emt 0:00:32]} Bc5 {[%emt 0:00:05]} 6. c3 {[%emt 0:02:26]} b5 {[%emt 0:00:18]} 7. Bc2 {[%emt 0:01:36]} d5 {[%emt 0:00:07]} 8. d4 {[%emt 0:03:50]} dxe4 {[%emt 0:00:08]} 9. dxc5 {[%emt 0:06:05]} Qxd1 {[%emt 0:05:49]} 10. Bxd1 {[%emt 0:03:26]} exf3 {[%emt 0:00:06]} 11. Bxf3 {[%emt 0:00:04]} e4 {[%emt 0:00:06]} 12. Be2 {[%emt 0:03:25]} Bg4 {[%emt 0:00:13]} 13. f3 {[%emt 0:01:14]} exf3 {[%emt 0:00:25]} 14. gxf3 {[%emt 0:00:05]} Bh3 {[%emt 0:05:18]} 15. Rd1 {[%emt 0:01:29]} O-O {[%emt 0:02:24]} 16. Bg5 {[%emt 0:05:52]} Rfe8 {[%emt 0:05:02]} 17. Kf2 {[%emt 0:02:39]} Nh5 {[%emt 0:04:40]} 18. Nd2 {[%emt 0:08:36]} h6 {[%emt 0:00:27]} 19. Be3 {[%emt 0:00:46]} Re6 {[%emt 0:00:58]} 20. Re1 {[%emt 0:03:02]} Nf6 {[%emt 0:22:19]} 21. Nb3 {[%emt 0:02:42]} Rae8 {[%emt 0:03:05]} 22. Bd2 {[%emt 0:00:56]} Nd7 {[%emt 0:04:33]} 23. Nd4 {[%emt 0:07:09]} Nxd4 {[%emt 0:02:18]} 24. cxd4 {[%emt 0:00:05]} Nf6 {[%emt 0:00:38]} 25. Bd3 {[%emt 0:02:25]} Rd8 {[%emt 0:00:57]} 26. Rxe6 {[%emt 0:01:16]} Bxe6 {[%emt 0:02:26]} 27. Be3 {[%emt 0:01:38]} Bc4 {[%emt 0:03:42]} 28. Bc2 {[%emt 0:02:56]} b4 {[%emt 0:19:41]} 29. a3 {[%emt 0:06:40]} bxa3 {[%emt 0:09:02]} 30. Rxa3 {[%emt 0:00:40]} Nd5 {[%emt 0:02:40]} 31. Bd2 {[%emt 0:03:57]} Rb8 {[%emt 0:01:22]} 32. b3 {[%emt 0:01:43]} Bb5 {[%emt 0:00:01]} 33. Ra1 {[%emt 0:00:42]} Rd8 {[%emt 0:00:59]} 34. Re1 {[%emt 0:00:58]} Kf8 {[%emt 0:00:14]} 35. h4 {[%emt 0:01:26]} Ne7 {[%emt 0:00:18]} 36. Bc3 {[%emt 0:00:22]} Nc6 {[%emt 0:00:32]} 37. Rd1 {[%emt 0:02:07]} Ne7 {[%emt 0:00:37]} 38. Re1 {[%emt 0:04:55]} Nc6 {[%emt 0:03:07]} 39. Rd1 {[%emt 0:00:29]} 1/2-1/2

[Event "11th LCC FIDE Open 2019"]
[Site "London"]
[Date "2019.12.02"]
[Round "5.3"]
[White "Aravindh, Chithambaram Vr"]
[Black "Hebden, Mark L"]
[Result "1-0"]
[ECO "A38"]
[WhiteElo "2605"]
[BlackElo "2436"]
[Annotator "ChessBase"]
[PlyCount "67"]
[EventDate "2019.11.29"]
[EventType "swiss"]
[EventCountry "ENG"]
[SourceTitle "playchess.com"]
[Source "ChessBase"]
[SourceQuality "1"]
[TimeControl "40/5400+30:1800+30"]

1. Nf3 {[%emt 0:00:00]} Nf6 {[%emt 0:00:00]} 2. g3 {[%emt 0:00:00]} g6 {[%emt 0:01:54]} 3. b3 {[%emt 0:00:02]} Bg7 {[%emt 0:00:32]} 4. Bb2 {[%emt 0:00:05]} c5 {[%emt 0:02:55]} 5. c4 {[%emt 0:00:27]} d6 {[%emt 0:02:34]} 6. Bg2 {[%emt 0:00:55]} e5 {[%emt 0:00:37]} 7. O-O {[%emt 0:02:13]} O-O {[%emt 0:00:16]} 8. Nc3 {[%emt 0:00:34]} Nc6 {[%emt 0:01:15]} 9. e3 {[%emt 0:01:07]} Re8 {[%emt 0:03:01]} 10. d3 {[%emt 0:00:34]} Rb8 {[%emt 0:01:13]} 11. h3 {[%emt 0:02:07]} a6 {[%emt 0:01:18]} 12. Nd2 {[%emt 0:07:23]} Be6 {[%emt 0:01:56]} 13. Rc1 {[%emt 0:02:57]} Qd7 {[%emt 0:04:04]} 14. Kh2 {[%emt 0:00:20]} b5 {[%emt 0:07:37]} 15. Nde4 {[%emt 0:03:23]} Nxe4 {[%emt 0:10:29]} 16. Nxe4 {[%emt 0:00:08]} f6 {[%emt 0:01:06]} 17. Bc3 {[%emt 0:11:57]} Rbc8 {[%emt 0:06:54]} 18. f4 {[%emt 0:02:55]} b4 {[%emt 0:02:21]} 19. Ba1 {[%emt 0:16:28]} f5 {[%emt 0:02:14]} 20. Ng5 {[%emt 0:00:20]} exf4 {[%emt 0:02:16]} 21. gxf4 {[%emt 0:00:27]} Nd8 {[%emt 0:02:48]} 22. d4 {[%emt 0:03:33]} Nf7 {[%emt 0:01:14]} 23. dxc5 {[%emt 0:02:45]} Nxg5 {[%emt 0:02:02]} 24. c6 {[%emt 0:01:00]} Qe7 {[%emt 0:01:09]} 25. Bxg7 {[%emt 0:00:41]} Ne4 {[%emt 0:06:30]} 26. Ba1 {[%emt 0:03:02]} Rxc6 {[%emt 0:01:42]} 27. Qd4 {[%emt 0:03:22]} Kf8 {[%emt 0:00:57]} 28. Bxe4 {[%emt 0:08:36]} fxe4 {[%emt 0:00:08]} 29. Qh8+ {[%emt 0:00:06]} Bg8 {[%emt 0:00:20]} 30. f5 {[%emt 0:00:08]} g5 {[%emt 0:02:16]} 31. f6 {[%emt 0:00:47]} Qf7 {[%emt 0:00:18]} 32. Rf5 {[%emt 0:05:52]} Rc5 {[%emt 0:00:32]} 33. Rcf1 {[%emt 0:00:14]} Rec8 {[%emt 0:00:22]} 34. Bd4 {[%emt 0:01:08]} 1-0

[Event "11th LCC FIDE Open 2019"]
[Site "London"]
[Date "2019.12.02"]
[Round "5.5"]
[White "Kirk, Ezra G"]
[Black "Petrov, Martin"]
[Result "0-1"]
[ECO "B51"]
[WhiteElo "2433"]
[BlackElo "2497"]
[Annotator "ChessBase"]
[PlyCount "56"]
[EventDate "2019.11.29"]
[EventType "swiss"]
[EventCountry "ENG"]
[SourceTitle "playchess.com"]
[Source "ChessBase"]
[SourceQuality "1"]
[TimeControl "40/5400+30:1800+30"]

1. e4 {[%emt 0:01:26]} c5 {[%emt 0:00:00]} 2. Nf3 {[%emt 0:00:07]} d6 {[%emt 0:00:00]} 3. Bb5+ {[%emt 0:00:04]} Nd7 {[%emt 0:00:00]} 4. c3 {[%emt 0:00:15]} Ngf6 {[%emt 0:00:06]} 5. Qe2 {[%emt 0:00:06]} a6 {[%emt 0:00:04]} 6. Ba4 {[%emt 0:00:06]} b5 {[%emt 0:00:07]} 7. Bc2 {[%emt 0:00:06]} Bb7 {[%emt 0:00:04]} 8. d4 {[%emt 0:00:15]} g6 {[%emt 0:00:06]} 9. O-O {[%emt 0:01:32]} Bg7 {[%emt 0:00:04]} 10. Re1 {[%emt 0:03:06]} O-O {[%emt 0:00:57]} 11. e5 {[%emt 0:02:40]} Ne8 {[%emt 0:00:13]} 12. dxc5 {[%emt 0:28:27]} dxe5 {[%emt 0:26:56]} 13. b4 {[%emt 0:01:43]} a5 {[%emt 0:05:07]} 14. Qxb5 {[%emt 0:18:39]} Qc7 {[%emt 0:18:09]} 15. Bg5 {[%emt 0:08:39]} Nef6 {[%emt 0:04:16]} 16. Bxf6 {[%emt 0:06:11]} Nxf6 {[%emt 0:00:43]} 17. Nxe5 {[%emt 0:03:53]} axb4 {[%emt 0:07:59]} 18. cxb4 {[%emt 0:05:10]} Nd5 {[%emt 0:08:09]} 19. c6 {[%emt 0:05:58]} Bxe5 {[%emt 0:00:37]} 20. cxb7 {[%emt 0:05:31]} Rad8 {[%emt 0:00:04]} 21. Bb3 {[%emt 0:02:10]} e6 {[%emt 0:00:53]} 22. Na3 {[%emt 0:02:30]} Bxa1 {[%emt 0:00:09]} 23. Rxa1 {[%emt 0:00:03]} Rb8 {[%emt 0:00:09]} 24. Bxd5 {[%emt 0:01:01]} exd5 {[%emt 0:00:06]} 25. Qd3 {[%emt 0:00:37]} Rxb7 {[%emt 0:00:46]} 26. Nb5 {[%emt 0:00:21]} Qc4 {[%emt 0:01:41]} 27. Qxc4 {[%emt 0:00:05]} dxc4 {[%emt 0:00:03]} 28. a4 {[%emt 0:00:18]} Ra8 {[%emt 0:00:05]} 0-1

[Event "11th LCC FIDE Open 2019"]
[Site "London"]
[Date "2019.12.02"]
[Round "5.7"]
[White "Cox, John J"]
[Black "Moussard, Jules"]
[Result "0-1"]
[ECO "A21"]
[WhiteElo "2306"]
[BlackElo "2600"]
[Annotator "ChessBase"]
[PlyCount "64"]
[EventDate "2019.11.29"]
[EventType "swiss"]
[EventCountry "ENG"]
[SourceTitle "playchess.com"]
[Source "ChessBase"]
[SourceQuality "1"]
[TimeControl "40/5400+30:1800+30"]

1. c4 {[%emt 0:00:00]} f5 {[%emt 0:00:00]} 2. g3 {[%emt 0:00:00]} Nf6 {[%emt 0:00:00]} 3. Bg2 {[%emt 0:00:00]} e5 {[%emt 0:00:07]} 4. Nc3 {[%emt 0:00:00]} Bb4 {[%emt 0:00:28]} 5. Qc2 {[%emt 0:07:34]} Nc6 {[%emt 0:00:29]} 6. Nd5 {[%emt 0:09:49]} Nxd5 {[%emt 0:06:02]} 7. cxd5 {[%emt 0:00:34]} Ne7 {[%emt 0:00:32]} 8. Nh3 {[%emt 0:06:31]} O-O {[%emt 0:06:19]} 9. O-O {[%emt 0:01:36]} d6 {[%emt 0:00:49]} 10. d4 {[%emt 0:08:35]} Kh8 {[%emt 0:14:45]} 11. a3 {[%emt 0:02:19]} Ba5 {[%emt 0:06:00]} 12. dxe5 {[%emt 0:15:27]} dxe5 {[%emt 0:00:06]} 13. b4 {[%emt 0:02:21]} Bb6 {[%emt 0:00:04]} 14. Bb2 {[%emt 0:00:07]} Ng6 {[%emt 0:02:59]} 15. e3 {[%emt 0:03:32]} f4 {[%emt 0:04:02]} 16. exf4 {[%emt 0:02:40]} Bf5 {[%emt 0:11:54]} 17. Qd2 {[%emt 0:03:45]} Qd7 {[%emt 0:02:19]} 18. Ng5 {[%emt 0:03:22]} exf4 {[%emt 0:02:17]} 19. Qc3 {[%emt 0:00:40]} Rae8 {[%emt 0:06:38]} 20. Ne6 {[%emt 0:05:27]} Rf7 {[%emt 0:00:19]} 21. Rae1 {[%emt 0:09:15]} fxg3 {[%emt 0:00:54]} 22. hxg3 {[%emt 0:00:09]} Bxe6 {[%emt 0:02:16]} 23. dxe6 {[%emt 0:00:06]} Rxe6 {[%emt 0:00:06]} 24. Bh3 {[%emt 0:04:56]} Rxe1 {[%emt 0:01:33]} 25. Bxd7 {[%emt 0:01:42]} Bxf2+ {[%emt 0:01:00]} 26. Kg2 {[%emt 0:00:09]} Rxf1 {[%emt 0:00:04]} 27. Be6 {[%emt 0:06:46]} Rg1+ {[%emt 0:01:08]} 28. Kh2 {[%emt 0:00:06]} Rxg3 {[%emt 0:01:04]} 29. Qd2 {[%emt 0:01:32]} Rf8 {[%emt 0:02:57]} 30. Bd4 {[%emt 0:03:47]} Nh4 {[%emt 0:02:00]} 31. Bd5 {[%emt 0:00:36]} Nf3+ {[%emt 0:00:23]} 32. Bxf3 {[%emt 0:00:04]} Rgxf3 {[%emt 0:00:03]} 0-1

[Event "11th LCC FIDE Open 2019"]
[Site "London"]
[Date "2019.12.02"]
[Round "5.8"]
[White "Maze, Sebastien"]
[Black "Van Zyl-Rudd, Jack"]
[Result "1-0"]
[ECO "A13"]
[WhiteElo "2541"]
[BlackElo "2290"]
[Annotator "ChessBase"]
[PlyCount "31"]
[EventDate "2019.11.29"]
[EventType "swiss"]
[EventCountry "ENG"]
[SourceTitle "playchess.com"]
[Source "ChessBase"]
[SourceQuality "1"]
[TimeControl "40/5400+30:1800+30"]

1. c4 {[%emt 0:00:00]} e6 {[%emt 0:00:02]} 2. Nf3 {[%emt 0:00:00]} d5 {[%emt 0:00:06]} 3. e3 {[%emt 0:00:04]} Nf6 {[%emt 0:00:12]} 4. b3 {[%emt 0:00:11]} b6 {[%emt 0:00:07]} 5. Bb2 {[%emt 0:00:13]} Bb7 {[%emt 0:00:07]} 6. Nc3 {[%emt 0:01:02]} Nbd7 {[%emt 0:07:12]} 7. cxd5 {[%emt 0:00:36]} exd5 {[%emt 0:00:09]} 8. d4 {[%emt 0:04:48]} a6 {[%emt 0:00:13]} 9. g3 {[%emt 0:00:39]} Bd6 {[%emt 0:00:20]} 10. Bg2 {[%emt 0:00:05]} O-O {[%emt 0:00:07]} 11. O-O {[%emt 0:00:03]} Re8 {[%emt 0:02:02]} 12. Nd2 {[%emt 0:04:00]} Rb8 {[%emt 0:10:38]} 13. Re1 {[%emt 0:04:00]} Qe7 {[%emt 0:11:04]} 14. e4 {[%emt 0:19:44]} dxe4 {[%emt 0:03:44]} 15. Ndxe4 {[%emt 0:00:16]} Bb4 {[%emt 0:42:05]} 16. Nxf6+ {[%emt 0:01:22]} 1-0

[Event "11th LCC FIDE Open 2019"]
[Site "London"]
[Date "2019.12.02"]
[Round "5.10"]
[White "Wu, Li"]
[Black "Song, Raymond"]
[Result "0-1"]
[ECO "A42"]
[WhiteElo "2293"]
[BlackElo "2468"]
[Annotator "ChessBase"]
[PlyCount "56"]
[EventDate "2019.11.29"]
[EventType "swiss"]
[EventCountry "ENG"]
[SourceTitle "playchess.com"]
[Source "ChessBase"]
[SourceQuality "1"]
[TimeControl "40/5400+30:1800+30"]

1. d4 {[%emt 0:00:00]} d6 {[%emt 0:00:00]} 2. e4 {[%emt 0:00:35]} g6 {[%emt 0:00:00]} 3. c4 {[%emt 0:01:36]} e5 {[%emt 0:00:06]} 4. Nc3 {[%emt 0:06:40]} Nc6 {[%emt 0:04:28]} 5. d5 {[%emt 0:00:24]} Nce7 {[%emt 0:00:32]} 6. g4 {[%emt 0:09:04]} Nf6 {[%emt 0:01:53]} 7. f3 {[%emt 0:02:48]} Bg7 {[%emt 0:00:14]} 8. Be3 {[%emt 0:00:42]} h5 {[%emt 0:00:57]} 9. g5 {[%emt 0:00:21]} Nd7 {[%emt 0:00:07]} 10. h4 {[%emt 0:00:38]} O-O {[%emt 0:00:08]} 11. Nh3 {[%emt 0:02:18]} c6 {[%emt 0:03:46]} 12. c5 {[%emt 0:11:53]} cxd5 {[%emt 0:11:26]} 13. cxd6 {[%emt 0:00:04]} Nc6 {[%emt 0:00:34]} 14. Nxd5 {[%emt 0:04:00]} Nd4 {[%emt 0:00:43]} 15. Rc1 {[%emt 0:02:03]} Nb6 {[%emt 0:02:32]} 16. Nc7 {[%emt 0:07:30]} Bxh3 {[%emt 0:04:39]} 17. Bxh3 {[%emt 0:00:52]} Rb8 {[%emt 0:01:53]} 18. Bxd4 {[%emt 0:00:47]} exd4 {[%emt 0:00:09]} 19. Nb5 {[%emt 0:00:02]} a6 {[%emt 0:00:56]} 20. Nxd4 {[%emt 0:01:03]} Qxd6 {[%emt 0:00:05]} 21. Ne2 {[%emt 0:00:04]} Qb4+ {[%emt 0:02:42]} 22. Qd2 {[%emt 0:02:14]} Qb5 {[%emt 0:00:09]} 23. b3 {[%emt 0:02:44]} Rbd8 {[%emt 0:00:32]} 24. Qc2 {[%emt 0:06:26]} Qa5+ {[%emt 0:01:46]} 25. Kf1 {[%emt 0:00:13]} Rd2 {[%emt 0:00:43]} 26. Qc7 {[%emt 0:01:46]} Qb5 {[%emt 0:02:03]} 27. Re1 {[%emt 0:02:16]} Rfd8 {[%emt 0:00:10]} 28. Rg1 {[%emt 0:07:40]} R8d3 {[%emt 0:03:29]} 0-1

[Event "11th LCC FIDE Open 2019"]
[Site "London"]
[Date "2019.12.02"]
[Round "5.12"]
[White "Pert, Richard G"]
[Black "Berry, Neil"]
[Result "1/2-1/2"]
[ECO "D02"]
[WhiteElo "2436"]
[BlackElo "2250"]
[Annotator "ChessBase"]
[PlyCount "49"]
[EventDate "2019.11.29"]
[EventType "swiss"]
[EventCountry "ENG"]
[SourceTitle "playchess.com"]
[Source "ChessBase"]
[SourceQuality "1"]
[TimeControl "40/5400+30:1800+30"]

1. d4 {[%emt 0:00:00]} Nf6 {[%emt 0:00:00]} 2. Nf3 {[%emt 0:00:00]} e6 {[%emt 0:00:13]} 3. Bf4 {[%emt 0:00:40]} d5 {[%emt 0:01:07]} 4. e3 {[%emt 0:00:08]} Bd6 {[%emt 0:03:43]} 5. Nbd2 {[%emt 0:00:33]} O-O {[%emt 0:01:41]} 6. Bd3 {[%emt 0:00:22]} c5 {[%emt 0:11:42]} 7. dxc5 {[%emt 0:00:26]} Bxc5 {[%emt 0:00:34]} 8. O-O {[%emt 0:00:49]} Nc6 {[%emt 0:01:03]} 9. c4 {[%emt 0:03:34]} b6 {[%emt 0:06:10]} 10. a3 {[%emt 0:15:15]} Bb7 {[%emt 0:06:14]} 11. Qe2 {[%emt 0:01:43]} Bd6 {[%emt 0:06:54]} 12. Bg5 {[%emt 0:05:37]} h6 {[%emt 0:02:20]} 13. Bh4 {[%emt 0:03:43]} Be7 {[%emt 0:06:42]} 14. Rad1 {[%emt 0:09:13]} Qc7 {[%emt 0:13:37]} 15. Bg3 {[%emt 0:18:31]} Bd6 {[%emt 0:01:28]} 16. e4 {[%emt 0:03:01]} Bxg3 {[%emt 0:04:57]} 17. hxg3 {[%emt 0:01:11]} Ne5 {[%emt 0:07:35]} 18. cxd5 {[%emt 0:11:32]} Nxd3 {[%emt 0:02:06]} 19. Qxd3 {[%emt 0:00:18]} exd5 {[%emt 0:00:15]} 20. Rc1 {[%emt 0:03:22]} Qe7 {[%emt 0:01:02]} 21. e5 {[%emt 0:02:43]} Ne4 {[%emt 0:00:42]} 22. Nb3 {[%emt 0:01:09]} Nc5 {[%emt 0:03:31]} 23. Qe3 {[%emt 0:02:29]} Nxb3 {[%emt 0:01:05]} 24. Qxb3 {[%emt 0:00:05]} d4 {[%emt 0:00:11]} 25. Rfe1 {[%emt 0:05:48]} 1/2-1/2

[Event "11th LCC FIDE Open 2019"]
[Site "London"]
[Date "2019.12.02"]
[Round "5.14"]
[White "Gschnitzer, Adrian"]
[Black "Papadiamandis, Elliot"]
[Result "1-0"]
[ECO "B99"]
[WhiteElo "2422"]
[BlackElo "2220"]
[Annotator "ChessBase"]
[PlyCount "55"]
[EventDate "2019.11.29"]
[EventType "swiss"]
[EventCountry "ENG"]
[SourceTitle "playchess.com"]
[Source "ChessBase"]
[SourceQuality "1"]
[TimeControl "40/5400+30:1800+30"]

1. e4 {[%emt 0:00:04]} c5 {[%emt 0:00:00]} 2. Nf3 {[%emt 0:00:08]} d6 {[%emt 0:00:10]} 3. d4 {[%emt 0:00:06]} cxd4 {[%emt 0:00:23]} 4. Nxd4 {[%emt 0:00:07]} Nf6 {[%emt 0:00:23]} 5. Nc3 {[%emt 0:00:12]} a6 {[%emt 0:00:27]} 6. Bg5 {[%emt 0:00:09]} e6 {[%emt 0:00:30]} 7. f4 {[%emt 0:00:09]} Be7 {[%emt 0:00:14]} 8. Qf3 {[%emt 0:00:11]} Qc7 {[%emt 0:00:33]} 9. O-O-O {[%emt 0:00:14]} Nbd7 {[%emt 0:00:08]} 10. g4 {[%emt 0:00:25]} b5 {[%emt 0:00:42]} 11. Bxf6 {[%emt 0:00:14]} Nxf6 {[%emt 0:00:38]} 12. g5 {[%emt 0:00:09]} Nd7 {[%emt 0:00:34]} 13. f5 {[%emt 0:00:13]} O-O {[%emt 0:00:55]} 14. Rg1 {[%emt 0:20:38]} b4 {[%emt 0:01:58]} 15. Nce2 {[%emt 0:02:13]} e5 {[%emt 0:01:01]} 16. f6 {[%emt 0:05:17]} exd4 {[%emt 0:00:54]} 17. fxe7 {[%emt 0:03:05]} Re8 {[%emt 0:00:43]} 18. e5 {[%emt 0:12:29]} d3 {[%emt 0:20:40]} 19. Qxd3 {[%emt 0:02:38]} dxe5 {[%emt 0:04:56]} 20. Ng3 {[%emt 0:00:57]} Nc5 {[%emt 0:01:54]} 21. Qd8 {[%emt 0:01:52]} Qc6 {[%emt 0:02:40]} 22. Bg2 {[%emt 0:01:01]} e4 {[%emt 0:01:15]} 23. Nxe4 {[%emt 0:00:50]} Bd7 {[%emt 0:01:01]} 24. Nf6+ {[%emt 0:03:07]} Qxf6 {[%emt 0:00:35]} 25. gxf6 {[%emt 0:00:33]} Raxd8 {[%emt 0:00:09]} 26. exd8=Q {[%emt 0:00:12]} Rxd8 {[%emt 0:00:04]} 27. Bh3 {[%emt 0:00:31]} g6 {[%emt 0:00:31]} 28. Rd5 {[%emt 0:00:21]} 1-0

[Event "11th LCC FIDE Open 2019"]
[Site "London"]
[Date "2019.12.02"]
[Round "5.15"]
[White "McDonald, Neil R"]
[Black "Goh, Zi Han"]
[Result "1-0"]
[ECO "B51"]
[WhiteElo "2412"]
[BlackElo "2134"]
[Annotator "ChessBase"]
[PlyCount "53"]
[EventDate "2019.11.29"]
[EventType "swiss"]
[EventCountry "ENG"]
[SourceTitle "playchess.com"]
[Source "ChessBase"]
[SourceQuality "1"]
[TimeControl "40/5400+30:1800+30"]

1. e4 {[%emt 0:00:00]} c5 {[%emt 0:00:00]} 2. Nf3 {[%emt 0:00:00]} d6 {[%emt 0:00:00]} 3. Bb5+ {[%emt 0:00:00]} Nd7 {[%emt 0:00:00]} 4. a4 {[%emt 0:04:08]} Ngf6 {[%emt 0:02:26]} 5. Qe2 {[%emt 0:04:13]} a6 {[%emt 0:05:37]} 6. Bc4 {[%emt 0:01:00]} e6 {[%emt 0:06:11]} 7. Nc3 {[%emt 0:04:18]} Be7 {[%emt 0:05:07]} 8. O-O {[%emt 0:06:14]} O-O {[%emt 0:00:48]} 9. d3 {[%emt 0:01:51]} b6 {[%emt 0:01:09]} 10. Ng5 {[%emt 0:02:47]} h6 {[%emt 0:03:34]} 11. Nh3 {[%emt 0:01:59]} Ne5 {[%emt 0:01:08]} 12. Ba2 {[%emt 0:01:02]} Nc6 {[%emt 0:02:14]} 13. f4 {[%emt 0:01:10]} Nd4 {[%emt 0:01:52]} 14. Qd1 {[%emt 0:01:57]} Bb7 {[%emt 0:04:47]} 15. Ne2 {[%emt 0:02:13]} Qc7 {[%emt 0:04:30]} 16. Ng3 {[%emt 0:02:32]} b5 {[%emt 0:07:23]} 17. c3 {[%emt 0:02:55]} Nc6 {[%emt 0:01:26]} 18. f5 {[%emt 0:03:19]} e5 {[%emt 0:15:41]} 19. Nh5 {[%emt 0:00:47]} Rad8 {[%emt 0:06:28]} 20. Nf2 {[%emt 0:08:06]} Nb8 {[%emt 0:06:25]} 21. Nxf6+ {[%emt 0:05:39]} Bxf6 {[%emt 0:00:11]} 22. Qh5 {[%emt 0:00:47]} Qe7 {[%emt 0:05:45]} 23. Ng4 {[%emt 0:02:04]} Nd7 {[%emt 0:05:09]} 24. Rf3 {[%emt 0:09:11]} Bg5 {[%emt 0:02:48]} 25. Nxh6+ {[%emt 0:07:23]} gxh6 {[%emt 0:04:50]} 26. Rg3 {[%emt 0:02:43]} Nf6 {[%emt 0:05:25]} 27. Qxh6 {[%emt 0:00:48]} 1-0